bitfinex/quotes_BTCUSD_20250513
["timestamp","ask_amount","ask_price","bid_price","bid_amount"]
[1747137831187,1.2322794,103770.0,103760.0,0.96463516]
[1747137831396,1.2322794,103770.0,103760.0,0.94853516]
[1747137832071,1.2322794,103770.0,103760.0,1.09853516]
[1747137832411,1.2322794,103770.0,103760.0,0.94853516]
[1747137833244,1.03954547,103770.0,103760.0,0.95817213]
[1747137833601,1.24191609,103770.0,103760.0,0.95817213]
[1747137835578,1.01063595,103770.0,103760.0,1.33047213]
[1747137836309,1.001,103770.0,103760.0,1.33047213]
[1747137836434,1.01063604,103770.0,103760.0,1.33047213]
[1747137836656,1.001,103770.0,103760.0,1.36099766]
[1747137836898,1.001,103770.0,103760.0,1.33047213]
[1747137837124,1.001,103770.0,103760.0,1.48047213]
[1747137837374,1.001,103770.0,103760.0,1.33047213]
[1747137838007,1.001,103770.0,103760.0,1.25262461]
[1747137838909,1.001,103770.0,103760.0,1.33047213]
[1747137839396,1.001,103770.0,103760.0,1.68752574]
[1747137839588,1.001,103770.0,103760.0,3.62254074]
[1747137839792,1.001,103770.0,103760.0,3.28108574]
[1747137839968,1.001,103770.0,103760.0,3.11400174]
[1747137840168,1.001,103770.0,103760.0,2.82206774]
[1747137840776,0.49664101,103770.0,103760.0,2.82206774]
[1747137841029,0.44846019,103770.0,103760.0,2.82206774]
[1747137841679,0.35016045,103770.0,103760.0,2.82606774]
[1747137841857,0.35116045,103770.0,103760.0,2.83006774]
[1747137842005,0.35116045,103770.0,103760.0,2.91006774]
[1747137842647,0.002,103790.0,103780.0,0.25462152]
[1747137842845,0.002,103790.0,103780.0,2.57144128]
[1747137843075,0.002,103790.0,103780.0,2.26423886]
[1747137843211,0.002,103790.0,103780.0,2.66423886]
[1747137843407,0.002,103790.0,103780.0,2.63934086]
[1747137844277,0.003,103790.0,103780.0,2.64334086]
[1747137844496,0.22050428,103830.0,103820.0,0.20227306]
[1747137844736,0.31781368,103830.0,103820.0,0.24889723]
[1747137844942,0.30818256,103830.0,103820.0,0.24889723]
[1747137845351,0.32358256,103830.0,103820.0,0.00369387]
[1747137845566,0.37520899,103830.0,103820.0,0.00369387]
[1747137845776,0.37569442,103830.0,103820.0,0.00369387]
[1747137845982,0.38269442,103830.0,103820.0,0.00569387]
[1747137846201,0.62789778,103830.0,103820.0,0.00569387]
[1747137846425,0.38269442,103830.0,103820.0,0.0075134]
[1747137848034,0.62789778,103830.0,103820.0,0.00569387]
[1747137848328,0.62789778,103830.0,103820.0,0.00569376]
[1747137848900,0.96789778,103830.0,103820.0,0.00569376]
[1747137849576,0.97462762,103830.0,103820.0,0.00569376]
[1747137849990,1.61247098,103830.0,103820.0,0.00569376]
[1747137850135,1.25437183,103830.0,103820.0,0.00569376]
[1747137850337,1.63701183,103830.0,103820.0,0.00569376]
[1747137851583,0.01,103820.0,103800.0,0.07784752]
[1747137851805,0.24336581,103790.0,103780.0,0.07784752]
[1747137852021,0.34067521,103790.0,103780.0,0.07784752]
[1747137852245,0.30927521,103790.0,103780.0,0.07784752]
[1747137852461,0.30927521,103790.0,103780.0,0.22784752]
[1747137852677,0.30927521,103790.0,103780.0,0.07784752]
[1747137852887,0.21196581,103790.0,103780.0,0.28019863]
[1747137853100,0.202477,103790.0,103780.0,0.07784752]
[1747137853321,0.19284235,103790.0,103780.0,0.07784752]
[1747137853516,0.19584235,103790.0,103780.0,0.07884752]
[1747137854142,0.19784235,103790.0,103780.0,0.07984752]
[1747137854350,0.19784235,103790.0,103780.0,0.27156287]
[1747137854559,0.19584235,103790.0,103780.0,0.28019863]
[1747137855073,0.19684235,103790.0,103780.0,0.28019863]
[1747137856893,0.19684235,103790.0,103780.0,0.68019863]
[1747137857535,0.19684235,103790.0,103780.0,0.8398343]
[1747137857706,0.19684235,103790.0,103780.0,0.29946978]
[1747137857925,0.00414556,103790.0,103780.0,0.29946978]
[1747137858264,0.04268294,103790.0,103780.0,1.11674028]
[1747137858481,0.04268285,103790.0,103780.0,1.11674028]
[1747137858993,0.03868285,103790.0,103780.0,1.11674028]
[1747137859171,0.03968285,103790.0,103780.0,1.11874028]
[1747137859599,0.03868285,103790.0,103780.0,1.11674028]
[1747137860036,0.03868285,103790.0,103780.0,1.03889276]
[1747137860475,0.23138047,103790.0,103780.0,1.01585765]
[1747137860696,0.21211183,103790.0,103780.0,0.402]
[1747137860917,0.002,103830.0,103820.0,0.22153614]
[1747137861133,0.00248474,103830.0,103820.0,0.22153614]
[1747137861385,0.0217456,103830.0,103820.0,0.20227306]
[1747137861588,0.04341502,103830.0,103820.0,0.22153642]
[1747137861833,0.01211503,103830.0,103820.0,0.23116782]
[1747137862043,0.03137644,103830.0,103820.0,0.22153642]
[1747137862251,0.22399982,103830.0,103820.0,0.20227315]
[1747137862492,0.22399982,103830.0,103820.0,0.22153697]
[1747137862674,0.22399982,103830.0,103820.0,0.23116874]
[1747137862911,0.22399982,103830.0,103820.0,0.22153697]
[1747137863220,0.03137727,103830.0,103820.0,0.23116874]
[1747137863423,0.22640783,103830.0,103820.0,0.22153688]
[1747137863632,0.22499982,103830.0,103820.0,0.22153688]
[1747137863847,0.22499982,103830.0,103820.0,0.21190511]
[1747137864268,0.22499982,103830.0,103820.0,0.22153697]
[1747137864678,0.22499982,103830.0,103820.0,0.23116874]
[1747137864983,0.22499982,103830.0,103820.0,0.22153688]
[1747137865172,0.22499982,103830.0,103820.0,0.22153697]
[1747137865326,0.22499982,103830.0,103820.0,0.21190511]
[1747137865742,0.03237635,103830.0,103820.0,0.23116828]
[1747137865986,0.23703859,103830.0,103820.0,0.22153688]
[1747137866147,0.23463058,103830.0,103820.0,0.22153688]
[1747137866760,0.23463058,103830.0,103820.0,0.22153697]
[1747137866967,0.23463058,103830.0,103820.0,0.24080042]
[1747137867169,0.23463058,103830.0,103820.0,0.22153697]
[1747137867499,0.23463058,103830.0,103820.0,0.23116874]
[1747137867660,0.22500001,103830.0,103820.0,0.22153697]
[1747137867885,0.22500001,103830.0,103820.0,0.62153697]
[1747137869052,0.22500001,103830.0,103820.0,0.61190511]
[1747137869202,0.22500001,103830.0,103820.0,0.62153688]
[1747137869405,0.21536926,103830.0,103820.0,0.61190511]
[1747137869852,0.21536926,103830.0,103820.0,0.5926411]
[1747137870151,0.21536926,103830.0,103820.0,0.61190492]
[1747137870298,0.21536926,103830.0,103820.0,0.21190501]
[1747137870521,0.21536926,103830.0,103810.0,0.8493201]
[1747137870522,0.19610729,103830.0,103810.0,0.39357227]
[1747137870725,0.03853062,103810.0,103800.0,0.62979328]
[1747137870897,0.24323156,103810.0,103800.0,1.03942672]
[1747137871100,0.24082326,103810.0,103800.0,1.03942672]
[1747137871363,0.23119093,103810.0,103800.0,1.18942672]
[1747137871493,0.23119093,103810.0,103800.0,1.10194576]
[1747137871494,0.22155832,103810.0,103800.0,1.10194576]
[1747137871695,0.22155832,103810.0,103800.0,0.5615793]
[1747137871920,0.22155832,103810.0,103800.0,0.57121274]
[1747137872122,0.22155832,103810.0,103800.0,0.5615792]
[1747137872517,0.22255832,103810.0,103800.0,0.57521255]
[1747137872926,0.22255832,103810.0,103800.0,0.5655792]
[1747137873386,0.22255832,103810.0,103800.0,0.57521255]
[1747137873596,0.22155832,103810.0,103800.0,0.57121255]
[1747137873853,0.21192553,103810.0,103800.0,0.55194594]
[1747137874052,0.20233144,103790.0,103780.0,0.66267826]
[1747137874281,0.21196572,103790.0,103780.0,0.69158444]
[1747137874518,0.02890349,103790.0,103780.0,0.70121955]
[1747137874726,0.02890349,103790.0,103780.0,1.28642291]
[1747137874727,0.01926828,103790.0,103780.0,1.28642291]
[1747137874937,0.02890293,103790.0,103780.0,1.28642291]
[1747137875127,0.02890293,103790.0,103780.0,1.68642291]
[1747137875467,0.03953767,103790.0,103780.0,1.69142291]
[1747137875669,0.0405373,103790.0,103780.0,1.69542291]
[1747137875909,0.0405373,103790.0,103780.0,1.45021955]
[1747137876270,0.011634,103790.0,103780.0,1.53021955]
[1747137876474,0.02126818,103790.0,103780.0,1.53021955]
[1747137876698,0.04053729,103790.0,103780.0,1.45237203]
[1747137876938,0.23564426,103790.0,103780.0,1.41383093]
[1747137877164,0.03090385,103790.0,103780.0,1.6783047]
[1747137877372,0.22600943,103790.0,103780.0,1.6783047]
[1747137877524,0.23323547,103790.0,103780.0,1.6783047]
[1747137877971,0.23323547,103790.0,103780.0,1.26866959]
[1747137878507,0.23323547,103790.0,103780.0,1.43310144]
[1747137878881,0.23323547,103790.0,103780.0,1.03310144]
[1747137879051,0.22823547,103790.0,103780.0,1.03310144]
[1747137879462,0.22823547,103790.0,103780.0,1.43310144]
[1747137879877,0.21196636,103790.0,103780.0,1.41383102]
[1747137880074,0.21196636,103790.0,103780.0,1.43310162]
[1747137880843,0.01926957,103790.0,103780.0,1.43310162]
[1747137881050,0.01926846,103790.0,103780.0,1.68794009]
[1747137881257,0.02890292,103790.0,103780.0,1.68794009]
[1747137881464,0.02890302,103790.0,103780.0,1.68794009]
[1747137881672,0.01926846,103790.0,103780.0,1.70344009]
[1747137881878,0.02890292,103790.0,103780.0,1.70344009]
[1747137882287,0.03853757,103790.0,103780.0,1.70344009]
[1747137883050,0.03853757,103790.0,103780.0,1.68794009]
[1747137883461,0.21194576,103800.0,103790.0,0.21196581]
[1747137883729,0.30925516,103800.0,103790.0,0.19269679]
[1747137883931,0.21194576,103800.0,103790.0,0.20233153]
[1747137884103,0.21194576,103800.0,103790.0,0.22160074]
[1747137884304,0.01926698,103800.0,103790.0,0.23123511]
[1747137884517,0.0289007,103800.0,103790.0,0.64086929]
[1747137884721,0.04816842,103800.0,103790.0,0.64386929]
[1747137885247,0.24184664,103800.0,103790.0,0.64786929]
[1747137887439,0.23221329,103800.0,103790.0,0.23823511]
[1747137887639,0.27777059,103800.0,103790.0,0.2382352]
[1747137887846,0.23221329,103800.0,103790.0,0.24786911]
[1747137888052,0.23221329,103800.0,103790.0,0.64786911]
[1747137888467,0.23221329,103800.0,103790.0,0.63823483]
[1747137888709,0.22257966,103800.0,103790.0,0.62860046]
[1747137888913,0.22257966,103800.0,103790.0,0.63823483]
[1747137889119,0.22257966,103800.0,103790.0,0.62860046]
[1747137889609,0.22257966,103800.0,103790.0,0.63823474]
[1747137890050,0.02026753,103800.0,103790.0,0.64786892]
[1747137890379,0.22257966,103800.0,103790.0,0.64786892]
[1747137890785,0.22257966,103800.0,103790.0,0.63823474]
[1747137890994,0.22257966,103800.0,103790.0,0.23823474]
[1747137891602,0.22257966,103800.0,103790.0,0.63823474]
[1747137894467,0.22257966,103800.0,103790.0,0.23823474]
[1747137895126,0.22257966,103800.0,103790.0,0.63823474]
[1747137895322,0.26717359,103800.0,103790.0,0.59969679]
[1747137895595,0.25753987,103800.0,103790.0,0.59969679]
[1747137895775,0.21294594,103800.0,103790.0,0.61896609]
[1747137896094,0.21294594,103800.0,103790.0,0.6382352]
[1747137897211,0.21294594,103800.0,103790.0,0.64786957]
[1747137897676,0.21294594,103800.0,103790.0,0.64786911]
[1747137897858,0.21294594,103800.0,103790.0,0.63823483]
[1747137898061,0.21294594,103800.0,103790.0,0.23823483]
[1747137898484,0.21294594,103800.0,103790.0,1.34311952]
[1747137898485,0.001,103800.0,103790.0,1.34311952]
[1747137898684,0.001,103800.0,103790.0,1.45496977]
[1747137900267,0.01063316,103800.0,103790.0,1.45496977]
[1747137900676,0.21294576,103800.0,103790.0,0.747]
[1747137900910,0.49014912,103800.0,103790.0,0.007]
[1747137901134,0.6557394,103800.0,103790.0,0.007]
[1747137902060,0.25382152,103780.0,103770.0,0.41768096]
[1747137902307,0.25382152,103780.0,103770.0,0.40819001]
[1747137902538,0.24418641,103780.0,103770.0,0.43709981]
[1747137902791,0.23455102,103780.0,103770.0,0.22509346]
[1747137903051,0.22491535,103780.0,103770.0,0.41782739]
[1747137903325,0.22491535,103780.0,103770.0,0.42746399]
[1747137903631,0.20235102,103780.0,103770.0,0.44673607]
[1747137903864,0.00963502,103780.0,103770.0,0.4036528]
[1747137904120,0.02990608,103780.0,103770.0,0.4066528]
[1747137904552,0.23225664,103780.0,103770.0,0.40665336]
[1747137904555,0.2418924,103780.0,103770.0,0.41628959]
[1747137905074,0.24189231,103780.0,103770.0,0.23542468]
[1747137905298,0.06600677,103780.0,103770.0,0.23542468]
[1747137905523,0.02990627,103780.0,103770.0,0.23542468]
[1747137905726,0.23225738,103780.0,103770.0,0.63542468]
[1747137906660,0.23225738,103780.0,103770.0,0.65930218]
[1747137907362,0.23225738,103780.0,103770.0,0.64966614]
[1747137907792,0.02990627,103780.0,103770.0,0.64966614]
[1747137908025,0.22262162,103780.0,103770.0,0.64966614]
[1747137908839,0.02990627,103780.0,103770.0,0.25930218]
[1747137909003,0.03954194,103780.0,103770.0,0.25930218]
[1747137909205,0.03954194,103780.0,103770.0,0.65930218]
[1747137909405,0.23225729,103780.0,103770.0,0.64966614]
[1747137909853,0.24189305,103780.0,103770.0,0.65930218]
[1747137910713,0.02990627,103780.0,103770.0,0.65930218]
[1747137910835,0.03954194,103780.0,103770.0,0.65930218]
[1747137911075,0.03954102,103780.0,103770.0,0.90450554]
[1747137911883,0.03954102,103780.0,103770.0,0.65930218]
[1747137912573,0.02027014,103780.0,103770.0,0.65930218]
[1747137912787,0.01063493,103780.0,103770.0,1.27680554]
[1747137913001,0.02026995,103780.0,103770.0,1.27680554]
[1747137913176,0.02990516,103780.0,103770.0,1.27680554]
[1747137913380,0.001,103780.0,103770.0,1.27680554]
[1747137914322,0.01063493,103780.0,103770.0,1.27680554]
[1747137914954,0.001,103780.0,103770.0,1.27680554]
[1747137917132,0.01063493,103780.0,103770.0,1.27680554]
[1747137917551,0.03482191,103780.0,103770.0,1.27680554]
[1747137917886,0.02518698,103780.0,103770.0,1.27680554]
[1747137918479,0.001,103780.0,103770.0,1.27680554]
[1747137919072,0.001,103780.0,103770.0,1.29120721]
[1747137919852,0.01063502,103780.0,103770.0,1.29120721]
[1747137920064,0.02027023,103780.0,103770.0,1.45014721]
[1747137920272,0.02027032,103780.0,103770.0,1.45014721]
[1747137920460,0.02990571,103780.0,103770.0,1.20494385]
[1747137920672,0.02027032,103780.0,103770.0,1.20494385]
[1747137920878,0.01063502,103780.0,103770.0,1.20494385]
[1747137921094,0.02027023,103780.0,103770.0,1.20494385]
[1747137922356,0.02027023,103780.0,103770.0,1.45014721]
[1747137924112,0.02027013,103780.0,103770.0,1.45014721]
[1747137925928,0.02990543,103780.0,103770.0,1.45014721]
[1747137926156,0.02027013,103780.0,103770.0,1.45014721]
[1747137926537,0.02990552,103780.0,103770.0,1.45014721]
[1747137926925,0.02990534,103780.0,103770.0,1.45014721]
[1747137927394,0.02990534,103780.0,103770.0,1.20494385]
[1747137927703,0.02990534,103780.0,103770.0,1.45014721]
[1747137928324,0.02027023,103780.0,103770.0,1.45014721]
[1747137929123,0.02990571,103780.0,103770.0,1.45014721]
[1747137929328,0.02027023,103780.0,103770.0,1.45014721]
[1747137929526,0.02990562,103780.0,103770.0,1.45014721]
[1747137929708,0.02027023,103780.0,103770.0,1.45014721]
[1747137930255,0.02990571,103780.0,103770.0,1.45014721]
[1747137930461,0.02027023,103780.0,103770.0,1.45014721]
[1747137930667,0.02990562,103780.0,103770.0,1.45014721]
[1747137931124,0.02990553,103780.0,103770.0,1.45014721]
[1747137931674,0.02027023,103780.0,103770.0,1.46668235]
[1747137932084,0.02990562,103780.0,103770.0,1.46668235]
[1747137932753,0.02609842,103780.0,103770.0,1.46668235]
[1747137936729,0.25236944,103780.0,103770.0,0.7845582]
[1747137936952,0.26846944,103780.0,103770.0,0.0445582]
[1747137937816,0.275238,103780.0,103770.0,0.0445582]
[1747137939284,0.69437406,103780.0,103770.0,0.0206807]
[1747137939516,1.1490896,103780.0,103770.0,0.0206807]
[1747137939752,0.57427044,103770.0,103760.0,0.002]
[1747137939968,1.26949364,103770.0,103760.0,0.002]
[1747137940200,1.2862622,103770.0,103760.0,0.002]
[1747137940411,1.32785736,103770.0,103760.0,0.002]
[1747137940621,1.30080305,103770.0,103760.0,0.002]
[1747137940832,1.30180305,103770.0,103760.0,0.004]
[1747137941474,1.29503449,103770.0,103760.0,0.002]
[1747137941664,1.32398513,103770.0,103760.0,0.002]
[1747137941812,1.32298513,103770.0,103760.0,0.002]
[1747137942040,1.29178999,103770.0,103760.0,0.002]
[1747137942248,0.98088427,103770.0,103760.0,0.002]
[1747137942448,1.22618647,103770.0,103760.0,0.002]
[1747137943133,1.47148867,103770.0,103760.0,0.002]
[1747137943336,1.22618647,103770.0,103760.0,0.002]
[1747137943542,1.47148867,103770.0,103760.0,0.002]
[1747137944279,1.49231623,103770.0,103760.0,0.002]
[1747137946781,1.24701403,103770.0,103760.0,0.002]
[1747137946991,1.47148867,103770.0,103760.0,0.002]
[1747137947362,1.22618647,103770.0,103760.0,0.002]
[1747137948529,1.47148867,103770.0,103760.0,0.002]
[1747137948924,1.22618647,103770.0,103760.0,0.002]
[1747137949465,1.47148867,103770.0,103760.0,0.002]
[1747137956623,1.46148867,103770.0,103760.0,0.002]
[1747137956825,0.87361487,103770.0,103760.0,0.002]
[1747137956989,0.92763707,103770.0,103760.0,0.002]
[1747137957191,1.36421927,103770.0,103760.0,0.002]
[1747137957857,1.11891707,103770.0,103760.0,0.002]
[1747137958060,1.21622647,103770.0,103760.0,0.002]
[1747137959329,1.46152867,103770.0,103760.0,0.002]
[1747137959737,1.49606952,103770.0,103760.0,0.002]
[1747137959936,1.48606952,103770.0,103760.0,0.002]
[1747137960383,1.48506952,103770.0,103760.0,0.002]
[1747137960741,1.48606952,103770.0,103760.0,0.002]
[1747137961027,1.50106952,103770.0,103760.0,0.003]
[1747137961271,1.68734952,103770.0,103760.0,0.002]
[1747137961752,1.69334952,103770.0,103760.0,0.003]
[1747137962596,1.79084952,103770.0,103760.0,0.003]
[1747137962868,1.68934952,103770.0,103760.0,0.003]
[1747137963135,1.69434952,103770.0,103760.0,0.003]
[1747137969686,1.72133048,103770.0,103760.0,0.003]
[1747137973439,1.07415192,103750.0,103740.0,0.002]
[1747137973652,1.18770728,103750.0,103740.0,0.002]
[1747137973870,1.70960756,103750.0,103740.0,0.002]
[1747137974082,1.46430536,103750.0,103740.0,0.002]
[1747137974892,1.46630536,103750.0,103740.0,0.002]
[1747137975770,1.45190536,103750.0,103740.0,0.002]
[1747137975988,1.41226451,103750.0,103740.0,0.002]
[1747137979377,1.41226451,103750.0,103740.0,0.0175]
[1747137980470,1.41226451,103750.0,103740.0,0.002]
[1747137983727,1.38528355,103750.0,103740.0,0.002]
[1747137986058,1.38528355,103750.0,103740.0,0.0185]
[1747137986301,1.38528355,103750.0,103740.0,0.002]
[1747137986756,1.38528355,103750.0,103740.0,0.0185]
[1747137986982,1.38528355,103750.0,103740.0,0.002]
[1747137988442,1.38528355,103750.0,103740.0,0.0173]
[1747137988674,0.32011195,103750.0,103740.0,0.0326]
[1747137990320,0.32011195,103750.0,103740.0,0.22538966]
[1747137990544,0.222802,103750.0,103740.0,0.43590816]
[1747137990760,0.23244036,103750.0,103740.0,0.44554717]
[1747137991045,0.01075503,103750.0,103740.0,1.13306061]
[1747137991284,0.02039274,103750.0,103740.0,1.33393944]
[1747137991667,0.01075503,103750.0,103740.0,1.73393944]
[1747137991683,0.04255271,103750.0,103740.0,1.43750905]
[1747137991923,0.22568524,103750.0,103740.0,1.25590816]
[1747137992150,0.24096225,103750.0,103740.0,1.11625117]
[1747137992372,0.60003154,103750.0,103740.0,0.117064]
[1747137992602,1.13127154,103750.0,103740.0,0.086464]
[1747137992828,1.13127154,103750.0,103740.0,0.006464]
[1747137993059,0.94679043,103750.0,103740.0,0.006464]
[1747137993284,1.13803043,103750.0,103740.0,0.006464]
[1747137993506,0.94679043,103750.0,103740.0,0.006464]
[1747137993725,0.94479043,103750.0,103740.0,0.001464]
[1747137993967,0.94779043,103750.0,103740.0,0.004464]
[1747137994167,0.60779043,103750.0,103740.0,0.004464]
[1747137994400,0.60679043,103750.0,103740.0,0.002464]
[1747137994647,0.60879043,103750.0,103740.0,0.003464]
[1747137994893,0.32011638,103750.0,103740.0,0.003464]
[1747137995813,0.32011638,103750.0,103740.0,0.018764]
[1747137996273,0.56541858,103750.0,103740.0,0.018764]
[1747137996518,0.56541858,103750.0,103740.0,0.003464]
[1747138000093,0.56541858,103750.0,103740.0,0.02023925]
[1747138000306,0.66036006,103750.0,103740.0,0.02023925]
[1747138000719,0.41505786,103750.0,103740.0,0.02023925]
[1747138000927,0.32011638,103750.0,103740.0,0.03523925]
[1747138001530,0.32011638,103750.0,103740.0,0.05143925]
[1747138003743,0.32011638,103750.0,103740.0,0.2635074]
[1747138003985,0.22280698,103750.0,103740.0,0.24422891]
[1747138004704,0.22280661,103750.0,103740.0,0.26350741]
[1747138004938,0.22280661,103750.0,103740.0,0.26350759]
[1747138005171,0.03003553,103750.0,103740.0,0.27314642]
[1747138005412,0.03003553,103750.0,103740.0,0.28278553]
[1747138005413,0.2324446,103750.0,103740.0,0.28278553]
[1747138005631,0.23532398,103750.0,103740.0,0.2731467]
[1747138005853,0.23532398,103750.0,103740.0,0.28278562]
[1747138006998,0.02327598,103750.0,103740.0,0.29242445]
[1747138007210,0.23532379,103750.0,103740.0,0.29242445]
[1747138007421,0.24496234,103750.0,103740.0,0.2731467]
[1747138007649,0.23532444,103750.0,103740.0,0.2731467]
[1747138007874,0.27880812,103750.0,103740.0,0.68278571]
[1747138008297,0.23532444,103750.0,103740.0,0.68278571]
[1747138008937,0.23532444,103750.0,103740.0,0.83278571]
[1747138010556,0.23532444,103750.0,103740.0,0.84242463]
[1747138010769,0.22568636,103750.0,103740.0,0.83278571]
[1747138011166,0.21604809,103750.0,103740.0,0.81350759]
[1747138011372,0.50815925,103750.0,103740.0,0.60143925]
[1747138011787,0.26285705,103750.0,103740.0,0.8038683]
[1747138011976,0.26285705,103750.0,103740.0,0.79422891]
[1747138012368,0.26285705,103750.0,103740.0,0.20143925]
[1747138012793,0.26285705,103750.0,103740.0,0.60143925]
[1747138013904,0.26285705,103750.0,103740.0,0.58523925]
[1747138014127,0.20242905,103740.0,103730.0,0.53724987]
[1747138014266,0.20242905,103740.0,103730.0,0.3976]
[1747138014716,0.20242905,103740.0,103730.0,0.61624856]
[1747138014937,0.20242905,103740.0,103730.0,0.62588878]
[1747138015345,0.20347747,103740.0,103730.0,0.62688878]
[1747138016639,0.20447747,103740.0,103730.0,0.62688878]
[1747138016996,0.21411667,103740.0,103730.0,0.63652891]
[1747138017194,0.29635055,103740.0,103730.0,0.61724866]
[1747138017502,0.29635055,103740.0,103730.0,0.62688897]
[1747138018185,0.29635055,103740.0,103730.0,0.4148]
[1747138018637,0.29635055,103740.0,103730.0,0.61724866]
[1747138018863,0.29635055,103740.0,103730.0,0.4148]
[1747138019071,0.29635055,103740.0,103730.0,0.61724866]
[1747138019296,0.28671135,103740.0,103730.0,0.4148]
[1747138019513,0.28671135,103740.0,103730.0,0.42444041]
[1747138019718,0.28671135,103740.0,103730.0,0.60760825]
[1747138020103,0.20447747,103740.0,103730.0,0.61724847]
[1747138020810,0.01168781,103740.0,103730.0,0.62688841]
[1747138021009,0.00204842,103740.0,103730.0,0.63652817]
[1747138021208,0.00204842,103740.0,103730.0,1.22183037]
[1747138021796,0.00204842,103740.0,103730.0,1.62183037]
[1747138024916,0.00204842,103740.0,103730.0,1.71913977]
[1747138027945,0.00204842,103740.0,103730.0,1.73368062]
[1747138029328,0.00204842,103740.0,103730.0,1.5473014]
[1747138029885,0.00204842,103740.0,103730.0,1.3019992]
[1747138030087,0.00204842,103740.0,103730.0,1.5473014]
[1747138031100,0.00204842,103740.0,103730.0,1.6273014]
[1747138033615,0.00204842,103740.0,103730.0,1.3819992]
[1747138033803,0.00204842,103740.0,103730.0,1.6273014]
[1747138034655,0.00204842,103740.0,103730.0,1.3819992]
[1747138034871,0.00204842,103740.0,103730.0,1.6273014]
[1747138037913,0.00204842,103740.0,103730.0,1.17625835]
[1747138038104,0.00204842,103740.0,103730.0,1.61268055]
[1747138040137,0.01168716,103740.0,103730.0,1.36737835]
[1747138040384,0.24805624,103740.0,103730.0,1.34153859]
[1747138040610,0.22375512,103740.0,103730.0,1.23866904]
[1747138040831,0.22067737,103740.0,103730.0,0.421]
[1747138041050,0.23717737,103740.0,103730.0,0.63308869]
[1747138041310,0.23717737,103740.0,103730.0,0.62344856]
[1747138041538,0.30470246,103740.0,103730.0,0.62344856]
[1747138042683,0.29506317,103740.0,103730.0,0.62344866]
[1747138042893,0.27856317,103740.0,103730.0,0.6427291]
[1747138043126,0.20447737,103740.0,103730.0,0.65236895]
[1747138043346,0.22375577,103740.0,103730.0,0.66200871]
[1747138043552,0.23339525,103740.0,103730.0,0.65236895]
[1747138044379,0.23339525,103740.0,103730.0,0.6427291]
[1747138044555,0.22375624,103740.0,103730.0,0.65236904]
[1747138044782,0.22375624,103740.0,103730.0,1.05236904]
[1747138045916,0.0213271,103740.0,103730.0,1.0620088]
[1747138046119,0.21411676,103740.0,103730.0,1.0620088]
[1747138046326,0.0213271,103740.0,103730.0,1.0620088]
[1747138047142,0.21411676,103740.0,103730.0,1.0620088]
[1747138047353,0.25702158,103740.0,103730.0,1.05236904]
[1747138047604,0.25702158,103740.0,103730.0,1.06200889]
[1747138047605,0.21411676,103740.0,103730.0,1.06200889]
[1747138048123,0.02132672,103740.0,103730.0,1.06200824]
[1747138048779,0.03096546,103740.0,103730.0,1.06200824]
[1747138049186,0.02132617,103740.0,103730.0,1.06200824]
[1747138049393,0.04060466,103740.0,103730.0,1.06200824]
[1747138049585,0.04060466,103740.0,103730.0,1.06509474]
[1747138049788,0.00204842,103740.0,103730.0,1.34259694]
[1747138050015,0.01168706,103740.0,103730.0,1.34259694]
[1747138050216,0.0213258,103740.0,103730.0,1.09729474]
[1747138050981,0.0213258,103740.0,103730.0,1.06509474]
[1747138050982,0.07522062,103740.0,103730.0,1.06509474]
[1747138051203,0.06558133,103740.0,103730.0,1.06509474]
[1747138051432,0.07522062,103740.0,103730.0,1.06509474]
[1747138051754,0.23339405,103740.0,103730.0,1.04581513]
[1747138051929,0.04060439,103740.0,103730.0,1.05545489]
[1747138052143,0.05024378,103740.0,103730.0,1.05545489]
[1747138052350,0.24303344,103740.0,103730.0,1.05545498]
[1747138052560,0.09450069,103740.0,103730.0,1.06509474]
[1747138053572,0.09450069,103740.0,103730.0,0.66509474]
[1747138054343,0.09450069,103740.0,103730.0,0.4240865]
[1747138054757,0.24303344,103740.0,103730.0,0.4240865]
[1747138055001,0.2333947,103740.0,103730.0,0.4240865]
[1747138055216,0.04060504,103740.0,103730.0,0.4240865]
[1747138055422,0.21411676,103740.0,103730.0,0.4240865]
[1747138056378,0.20447747,103740.0,103730.0,0.4240865]
[1747138056862,0.24487879,103740.0,103730.0,0.4240865]
[1747138057120,0.26097879,103740.0,103730.0,0.0040865]
[1747138057928,0.22057747,103740.0,103730.0,0.0040865]
[1747138058135,0.23717747,103740.0,103730.0,0.0040865]
[1747138058750,0.33448687,103740.0,103730.0,0.1952465]
[1747138059506,0.34124943,103740.0,103730.0,0.1952465]
[1747138061533,0.34124943,103740.0,103730.0,0.0040865]
[1747138061748,0.66448399,103740.0,103730.0,0.0040865]
[1747138066449,0.41918179,103740.0,103730.0,0.0040865]
[1747138066624,0.34124943,103740.0,103730.0,0.0040865]
[1747138068363,0.58655163,103740.0,103730.0,0.0040865]
[1747138068569,1.17185383,103740.0,103730.0,0.0040865]
[1747138068811,0.92655163,103740.0,103730.0,0.0040865]
[1747138069013,1.02386103,103740.0,103730.0,0.0040865]
[1747138070954,1.02286103,103740.0,103730.0,0.0040865]
[1747138071162,1.02186103,103740.0,103730.0,0.0030865]
[1747138071388,1.05907091,103740.0,103730.0,0.0030865]
[1747138071795,1.02586103,103740.0,103730.0,0.0030865]
[1747138072457,1.02986103,103740.0,103730.0,0.0040865]
[1747138074677,1.02986103,103740.0,103730.0,0.02444859]
[1747138075520,1.48086408,103740.0,103730.0,0.02444859]
[1747138076029,0.99025968,103740.0,103730.0,0.02444859]
[1747138076176,1.48086408,103740.0,103730.0,0.02444859]
[1747138078035,1.49086408,103740.0,103730.0,0.02444859]
[1747138078238,1.50086408,103740.0,103730.0,0.0040865]
[1747138078422,1.50086408,103740.0,103730.0,0.02455194]
[1747138080983,2.20026408,103740.0,103730.0,0.02455194]
[1747138082606,2.19026408,103740.0,103730.0,0.02455194]
[1747138082809,2.20026408,103740.0,103730.0,0.02455194]
[1747138083624,2.19226408,103740.0,103730.0,0.0030865]
[1747138083847,2.19226408,103740.0,103730.0,0.02353872]
[1747138084056,2.19626408,103740.0,103730.0,0.02353872]
[1747138084480,2.22325084,103740.0,103730.0,0.02353872]
[1747138084700,2.22325084,103740.0,103730.0,0.0030865]
[1747138084923,2.22825084,103740.0,103730.0,0.02355315]
[1747138085141,2.22825084,103740.0,103730.0,0.0030865]
[1747138085384,2.21825084,103740.0,103730.0,0.0030865]
[1747138085749,0.20252657,103690.0,103680.0,0.25824335]
[1747138085959,0.22277923,103690.0,103680.0,0.27519618]
[1747138086177,0.32008863,103690.0,103680.0,0.08701025]
[1747138086617,0.32008863,103690.0,103680.0,0.05361547]
[1747138087008,0.32108863,103690.0,103680.0,0.05510054]
[1747138087158,0.32108863,103690.0,103680.0,0.08827001]
[1747138087581,0.32108863,103690.0,103680.0,0.05510054]
[1747138088050,0.32208863,103690.0,103680.0,0.05510054]